[Event "IIFL Wealth 4th Mumbai Open"]
[Site "Mumbai"]
[Date "2019.01.06"]
[Round "8"]
[White "Arhan Chethan Anand"]
[Black "Abhinessh S"]
[Result "0-1"]
[ECO "A40"]
[WhiteElo "1710"]
[BlackElo "1790"]
[Annotator "NA"]
[PlyCount "140"]
[EventDate "2018.12.30"]
[EventType "swiss"]
[EventCountry "IND"]
[SourceTitle "playchess.com"]
[Source "ChessBase"]
[SourceQuality "1"]
[TimeControl "40/5400+30:1800+30"]

1. d4 {[%emt 0:00:00]} e6 {[%emt 0:00:00]} 2. c4 {[%emt 0:00:02]} c5 {[%emt 0:00:21]} 3. d5 {[%emt 0:00:13]} e5 {[%emt 0:00:35]} 4. e4 {[%emt 0:00:20]} d6 {[%emt 0:01:35]} 5. g3 {[%emt 0:02:31]} f5 {[%emt 0:03:09]} 6. Nc3 {[%emt 0:00:45]} Nf6 {[%emt 0:01:10]} 7. Bg2 {[%emt 0:00:48]} Be7 {[%emt 0:04:17]} 8. Nge2 {[%emt 0:01:05]} fxe4 {[%emt 0:04:09]} 9. Nxe4 {[%emt 0:01:10]} Bf5 {[%emt 0:01:38]} 10. Nxf6+ {[%emt 0:07:25]} Bxf6 {[%emt 0:00:29]} 11. Nc3 {[%emt 0:00:13]} Nd7 {[%emt 0:10:12]} 12. Ne4 {[%emt 0:03:11]} Be7 {[%emt 0:09:58]} 13. O-O {[%emt 0:09:43]} O-O {[%emt 0:05:21]} 14. Bd2 {[%emt 0:10:43]} Nf6 {[%emt 0:03:18]} 15. f3 {[%emt 0:02:07]} Qd7 {[%emt 0:03:13]} 16. a4 {[%emt 0:06:16]} Nxe4 {[%emt 0:07:01]} 17. fxe4 {[%emt 0:01:42]} Bg4 {[%emt 0:00:06]} 18. Qb3 {[%emt 0:05:03]} b6 {[%emt 0:04:19]} 19. Rae1 {[%emt 0:14:42]} Bh3 {[%emt 0:05:45]} 20. Qd1 {[%emt 0:05:16]} a6 {[%emt 0:06:33]} 21. Rxf8+ {[%emt 0:08:08]} Rxf8 {[%emt 0:00:09]} 22. Rf1 {[%emt 0:02:01]} Rxf1+ {[%emt 0:03:49]} 23. Kxf1 {[%emt 0:01:40]} Bg4 {[%emt 0:01:08]} 24. Qb3 {[%emt 0:01:46]} Bd8 {[%emt 0:00:07]} 25. Kg1 {[%emt 0:03:32]} Bh5 {[%emt 0:03:05]} 26. h3 {[%emt 0:01:05]} Be8 {[%emt 0:00:52]} 27. a5 {[%emt 0:02:06]} bxa5 {[%emt 0:00:30]} 28. Kh2 {[%emt 0:01:10]} Qc7 {[%emt 0:04:56]} 29. Bf3 {[%emt 0:02:45]} a4 {[%emt 0:03:10]} 30. Qa3 {[%emt 0:00:47]} Qb7 {[%emt 0:02:28]} 31. Bd1 {[%emt 0:00:45]} Bg6 {[%emt 0:02:03]} 32. Bc2 {[%emt 0:02:16]} h6 {[%emt 0:00:17]} 33. Kg2 {[%emt 0:01:15]} Kh7 {[%emt 0:01:49]} 34. Kh2 {[%emt 0:01:24]} Bh5 {[%emt 0:02:33]} 35. Kg2 {[%emt 0:01:18]} Be2 {[%emt 0:01:43]} 36. Bd3 {[%emt 0:02:00]} Bd1 {[%emt 0:00:16]} 37. Bf1 {[%emt 0:00:34]} Qb3 {[%emt 0:05:47]} 38. Bd3 Qb7 {[%emt 0:00:33]} 39. Bf1 {[%emt 0:01:06]} Qb3 {[%emt 0:00:13]} 40. Qxb3 {[%emt 0:00:00]} axb3 {[%emt 0:00:00]} 41. Kf2 {[%emt 0:03:12]} Bc2 {[%emt 0:00:45]} 42. Kf3 {[%emt 0:02:44]} a5 {[%emt 0:00:45]} 43. h4 {[%emt 0:02:03]} a4 {[%emt 0:00:19]} 44. Bc1 {[%emt 0:00:56]} Ba5 {[%emt 0:00:37]} 45. Ke3 {[%emt 0:00:49]} Be1 {[%emt 0:00:37]} 46. Bd3 {[%emt 0:01:06]} Bxg3 {[%emt 0:00:26]} 47. Bxc2 {[%emt 0:00:51]} Bf4+ {[%emt 0:00:09]} 48. Kd3 {[%emt 0:00:11]} Bxc1 {[%emt 0:00:05]} 49. Bd1 {[%emt 0:01:16]} Bxb2 {[%emt 0:00:09]} 50. Kd2 {[%emt 0:00:08]} h5 {[%emt 0:00:52]} 51. Ke3 {[%emt 0:00:25]} Bc1+ {[%emt 0:00:14]} 52. Kf3 {[%emt 0:00:11]} Kg6 {[%emt 0:00:08]} 53. Kg3 {[%emt 0:00:10]} Kf6 {[%emt 0:00:05]} 54. Kf3 {[%emt 0:00:10]} g5 {[%emt 0:00:13]} 55. Kg3 {[%emt 0:00:21]} g4 {[%emt 0:00:40]} 56. Kf2 {[%emt 0:00:10]} Ke7 {[%emt 0:00:22]} 57. Ke2 {[%emt 0:00:08]} Kd7 {[%emt 0:00:04]} 58. Kd3 {[%emt 0:00:13]} Bf4 {[%emt 0:00:38]} 59. Kc3 {[%emt 0:00:47]} Bg3 {[%emt 0:00:28]} 60. Kb2 {[%emt 0:00:07]} Bxh4 {[%emt 0:00:05]} 61. Ka3 {[%emt 0:00:11]} Bg5 {[%emt 0:00:41]} 62. Kxa4 {[%emt 0:02:10]} b2 {[%emt 0:00:10]} 63. Bc2 {[%emt 0:00:19]} g3 {[%emt 0:00:04]} 64. Bb1 {[%emt 0:00:01]} g2 {[%emt 0:00:09]} 65. Kb3 {[%emt 0:00:01]} g1=Q {[%emt 0:00:11]} 66. Kxb2 {[%emt 0:00:04]} Qc1+ {[%emt 0:00:18]} 67. Ka2 {[%emt 0:00:08]} Qxc4+ {[%emt 0:00:12]} 68. Kb2 {[%emt 0:00:11]} Bc1+ {[%emt 0:00:07]} 69. Ka1 {[%emt 0:00:05]} Qc3+ {[%emt 0:00:05]} 70. Ka2 {[%emt 0:00:07]} Qb2# {[%emt 0:00:04] Kb3} 0-1

[Event "IIFL Wealth 4th Mumbai Open"]
[Site "Mumbai"]
[Date "2019.01.06"]
[Round "8"]
[White "Joglekar, Abhijit"]
[Black "Bharadia Yash"]
[Result "0-1"]
[ECO "C97"]
[WhiteElo "1692"]
[BlackElo "1584"]
[Annotator "NA"]
[PlyCount "138"]
[EventDate "2018.12.30"]
[EventType "swiss"]
[EventCountry "IND"]
[SourceTitle "playchess.com"]
[Source "ChessBase"]
[SourceQuality "1"]
[TimeControl "40/5400+30:1800+30"]

1. e4 e5 2. Nf3 Nc6 3. Bb5 a6 4. Ba4 Nf6 5. O-O Be7 6. Re1 b5 7. Bb3 d6 8. c3 Na5 9. Bc2 c5 10. d4 Qc7 11. h3 O-O 12. Nbd2 Re8 13. Nf1 cxd4 14. cxd4 exd4 15. Nxd4 d5 16. e5 Bb4 17. Re2 Nd7 18. e6 Nf6 19. exf7+ Qxf7 20. Ne3 Bd7 21. a3 Bd6 22. b3 Ne4 23. Qe1 Nc6 24. Bb2 Nxd4 25. Bxd4 Qf4 26. Nf1 Ng5 27. Rxe8+ Rxe8 28. Qd2 Qxd2 29. Nxd2 Bf4 30. Bc3 Rc8 31. Rc1 Rxc3 32. Bxh7+ Nxh7 33. Rxc3 Bxd2 34. Rd3 Bc1 35. Rxd5 Nf6 36. Rd6 Bxa3 37. Rxa6 b4 38. Rd6 Kf7 39. Kf1 Be6 40. Rd3 Bb2 41. g4 Bc3 42. f4 Bxb3 43. Rd8 Bc4+ 44. Kf2 b3 45. g5 b2 46. Rb8 Ne4+ 47. Ke3 Nd2 48. Rb7+ Kg8 49. Rxb2 Nf1+ 50. Ke4 Bxb2 51. Kf5 Bd3+ 52. Kg4 g6 53. h4 Be2+ 54. Kh3 Bc1 55. Kg2 Bxf4 56. Kf2 Bd3 57. Kf3 Bg3 58. Kg4 Bf5+ 59. Kf3 Bxh4 60. Kg2 Ne3+ 61. Kf3 Bxg5 62. Kf2 Bf4 63. Kf3 g5 64. Kf2 g4 65. Kg1 g3 66. Kh1 Bh3 67. Kg1 Ng4 68. Kh1 g2+ 69. Kg1 Bh2# 0-1

[Event "IIFL Wealth 4th Mumbai Open"]
[Site "Mumbai"]
[Date "2019.01.06"]
[Round "8"]
[White "Dhanashree, Pandit"]
[Black "Raghav, Srivathsav V"]
[Result "0-1"]
[ECO "E73"]
[WhiteElo "1676"]
[BlackElo "2056"]
[Annotator "NA"]
[PlyCount "78"]
[EventDate "2018.12.30"]
[EventType "swiss"]
[EventCountry "IND"]
[SourceTitle "playchess.com"]
[Source "ChessBase"]
[SourceQuality "1"]
[TimeControl "40/5400+30:1800+30"]

1. d4 {[%emt 0:00:00]} Nf6 {[%emt 0:01:44]} 2. c4 {[%emt 0:00:00]} g6 {[%emt 0:00:09]} 3. Nc3 {[%emt 0:00:00]} Bg7 {[%emt 0:00:07]} 4. e4 {[%emt 0:00:00]} d6 {[%emt 0:00:04]} 5. Be2 {[%emt 0:00:00]} O-O {[%emt 0:00:12]} 6. Bg5 {[%emt 0:00:02]} c6 {[%emt 0:01:12]} 7. Qd2 {[%emt 0:00:23]} Nbd7 {[%emt 0:00:46]} 8. Nf3 {[%emt 0:00:26]} Rb8 {[%emt 0:01:27]} 9. O-O {[%emt 0:15:08]} Qc7 {[%emt 0:07:57]} 10. c5 {[%emt 0:07:15]} b6 {[%emt 0:02:35]} 11. cxd6 {[%emt 0:00:22]} exd6 {[%emt 0:00:09]} 12. e5 {[%emt 0:14:47]} dxe5 {[%emt 0:00:19]} 13. dxe5 {[%emt 0:00:07]} Ng4 {[%emt 0:01:08]} 14. Be7 {[%emt 0:00:47]} Ndxe5 {[%emt 0:00:20]} 15. Qd6 {[%emt 0:00:15]} Qb7 {[%emt 0:01:39]} 16. Bxf8 {[%emt 0:00:47]} Bxf8 {[%emt 0:00:48]} 17. Qd1 {[%emt 0:00:44]} h5 {[%emt 0:02:08]} 18. Nxe5 {[%emt 0:03:35]} Nxe5 {[%emt 0:00:13]} 19. Ne4 {[%emt 0:01:00]} Qe7 {[%emt 0:00:40]} 20. Qd2 {[%emt 0:07:48]} Bf5 {[%emt 0:01:31]} 21. Ng3 {[%emt 0:03:18]} Be6 {[%emt 0:01:54]} 22. Qf4 {[%emt 0:01:50]} Bg7 {[%emt 0:00:36]} 23. Rfe1 {[%emt 0:04:40]} Rd8 {[%emt 0:01:45]} 24. a4 {[%emt 0:11:21]} f5 {[%emt 0:03:24]} 25. h4 {[%emt 0:12:05]} Rd4 {[%emt 0:03:23]} 26. Qc1 {[%emt 0:05:44]} Qxh4 {[%emt 0:04:18]} 27. a5 {[%emt 0:01:13]} Bd5 {[%emt 0:05:29]} 28. Rd1 {[%emt 0:04:09]} Rxd1+ {[%emt 0:11:25]} 29. Bxd1 {[%emt 0:01:43]} f4 {[%emt 0:05:22]} 30. Ra4 {[%emt 0:01:44]} Nd3 {[%emt 0:01:45]} 31. Qd2 {[%emt 0:00:01]} b5 {[%emt 0:01:18]} 32. Ra3 {[%emt 0:01:18]} Nxb2 {[%emt 0:01:10]} 33. Bc2 {[%emt 0:02:36]} Nc4 {[%emt 0:02:35]} 34. Qe2 {[%emt 0:00:02]} Bf7 {[%emt 0:06:18]} 35. Rd3 {[%emt 0:01:08]} fxg3 {[%emt 0:01:46]} 36. Rxg3 {[%emt 0:00:02]} Be5 {[%emt 0:00:55]} 37. Rh3 {[%emt 0:00:14]} Qg5 {[%emt 0:02:29]} 38. Qe1 {[%emt 0:00:48]} Bd5 {[%emt 0:07:32]} 39. Qf1 {[%emt 0:00:40]} Nd2 {[%emt 0:00:28]} 0-1

[Event "IIFL Wealth 4th Mumbai Open"]
[Site "Mumbai"]
[Date "2019.01.06"]
[Round "8"]
[White "Sunil, Vaidya"]
[Black "Devesh Anand Naik"]
[Result "0-1"]
[ECO "A45"]
[WhiteElo "1663"]
[BlackElo "1830"]
[Annotator "NA"]
[PlyCount "114"]
[EventDate "2018.12.30"]
[EventType "swiss"]
[EventCountry "IND"]
[SourceTitle "playchess.com"]
[Source "ChessBase"]
[SourceQuality "1"]
[TimeControl "40/5400+30:1800+30"]

1. d4 {[%emt 0:00:48]} Nf6 {[%emt 0:00:00]} 2. Bf4 {[%emt 0:00:15]} g6 {[%emt 0:00:00]} 3. e3 {[%emt 0:00:07]} Bg7 {[%emt 0:00:00]} 4. Nd2 {[%emt 0:00:51]} O-O {[%emt 0:00:13]} 5. Ngf3 {[%emt 0:01:22]} d6 {[%emt 0:00:19]} 6. h3 {[%emt 0:00:16]} Nbd7 {[%emt 0:00:23]} 7. Bd3 {[%emt 0:01:20]} Re8 {[%emt 0:00:43]} 8. e4 {[%emt 0:09:15]} e5 {[%emt 0:00:29]} 9. dxe5 {[%emt 0:01:00]} dxe5 {[%emt 0:00:09]} 10. Bg5 {[%emt 0:00:27]} h6 {[%emt 0:02:18]} 11. Be3 {[%emt 0:04:34]} Nh5 {[%emt 0:01:23]} 12. g3 {[%emt 0:03:45]} Qe7 {[%emt 0:01:32]} 13. Nb3 {[%emt 0:05:38]} b6 {[%emt 0:01:14]} 14. Qd2 {[%emt 0:05:23]} Kh7 {[%emt 0:00:33]} 15. Bb5 {[%emt 0:01:52]} Rd8 {[%emt 0:15:19]} 16. Qd5 {[%emt 0:14:29]} Rb8 {[%emt 0:05:50]} 17. Bc4 {[%emt 0:04:11]} Rf8 {[%emt 0:04:04]} 18. O-O-O {[%emt 0:04:33]} Nhf6 {[%emt 0:01:09]} 19. Qd3 {[%emt 0:00:44]} Bb7 {[%emt 0:00:18]} 20. Nfd2 {[%emt 0:01:31]} a5 {[%emt 0:03:35]} 21. a4 {[%emt 0:00:33]} Rfd8 {[%emt 0:04:06]} 22. f3 {[%emt 0:02:57]} Nf8 {[%emt 0:01:52]} 23. Qc3 {[%emt 0:01:00]} Bc6 {[%emt 0:02:36]} 24. Bb5 {[%emt 0:01:25]} Bxb5 {[%emt 0:00:35]} 25. axb5 {[%emt 0:00:02]} a4 {[%emt 0:00:23]} 26. Na1 {[%emt 0:00:10]} Ne6 {[%emt 0:00:57]} 27. Qa3 {[%emt 0:01:03]} Qe8 {[%emt 0:01:26]} 28. c4 {[%emt 0:00:58]} Nd7 {[%emt 0:02:59]} 29. Nb1 {[%emt 0:00:39]} Nd4 {[%emt 0:01:41]} 30. Bxd4 {[%emt 0:01:21]} exd4 {[%emt 0:00:08]} 31. f4 {[%emt 0:02:20]} Qxe4 {[%emt 0:01:52]} 32. Rhe1 {[%emt 0:00:31]} Qf5 {[%emt 0:00:16]} 33. Qf3 {[%emt 0:07:02]} Qf6 {[%emt 0:01:46]} 34. Qc6 {[%emt 0:03:29]} Nc5 {[%emt 0:03:41]} 35. Qxf6 {[%emt 0:01:31]} Bxf6 {[%emt 0:00:09]} 36. Na3 {[%emt 0:02:13]} d3 {[%emt 0:00:42]} 37. Rd2 {[%emt 0:02:21]} Re8 {[%emt 0:00:33]} 38. Red1 {[%emt 0:02:00]} Re2 {[%emt 0:01:47]} 39. Nb1 {[%emt 0:00:25]} Rbe8 {[%emt 0:03:01]} 40. Nc3 {[%emt 0:00:00]} Bxc3 {[%emt 0:00:00]} 41. bxc3 {[%emt 0:05:28]} Rxd2 {[%emt 0:02:09]} 42. Kxd2 {[%emt 0:04:31]} Re2+ {[%emt 0:00:57]} 43. Kc1 {[%emt 0:00:27]} Rg2 {[%emt 0:01:59]} 44. g4 {[%emt 0:05:30]} Rh2 {[%emt 0:00:20]} 45. h4 {[%emt 0:03:53]} Rxh4 {[%emt 0:00:13]} 46. Kd2 {[%emt 0:00:34]} Rh2+ {[%emt 0:11:02]} 47. Ke3 {[%emt 0:01:30]} Ra2 {[%emt 0:02:40]} 48. Rh1 {[%emt 0:03:07]} Kg7 {[%emt 0:00:24]} 49. Kf3 {[%emt 0:01:36]} Re2 {[%emt 0:00:58]} 50. Rd1 {[%emt 0:01:17]} Re8 {[%emt 0:00:45]} 51. Rh1 {[%emt 0:00:55]} d2 {[%emt 0:02:08]} 52. Nc2 {[%emt 0:03:19]} Nd3 {[%emt 0:00:16]} 53. Ne3 {[%emt 0:02:28]} Ne1+ {[%emt 0:00:40]} 54. Ke2 {[%emt 0:00:49]} Rxe3+ {[%emt 0:00:43]} 55. Kxd2 {[%emt 0:00:05]} Re8 {[%emt 0:00:10]} 56. Rf1 {[%emt 0:03:53]} a3 {[%emt 0:00:17]} 57. Kc1 {[%emt 0:00:12]} Re2 {[%emt 0:00:14]} 0-1

[Event "IIFL Wealth 4th Mumbai Open"]
[Site "Mumbai"]
[Date "2019.01.06"]
[Round "8"]
[White "Mishra, Sanjeev"]
[Black "Aditya, Ramanathan"]
[Result "1-0"]
[ECO "C50"]
[WhiteElo "1662"]
[BlackElo "1602"]
[Annotator "NA"]
[PlyCount "81"]
[EventDate "2018.12.30"]
[EventType "swiss"]
[EventCountry "IND"]
[SourceTitle "playchess.com"]
[Source "ChessBase"]
[SourceQuality "1"]
[TimeControl "40/5400+30:1800+30"]

1. e4 {[%emt 0:00:00]} e5 {[%emt 0:00:00]} 2. Nf3 {[%emt 0:00:00]} Nc6 {[%emt 0:00:00]} 3. Bc4 {[%emt 0:00:02]} Bc5 {[%emt 0:00:00]} 4. O-O {[%emt 0:00:17]} Nf6 {[%emt 0:00:05]} 5. d4 {[%emt 0:00:15]} Bxd4 {[%emt 0:00:12]} 6. Nxd4 {[%emt 0:00:07]} Nxd4 {[%emt 0:00:06]} 7. Bg5 {[%emt 0:00:06]} d6 {[%emt 0:00:26]} 8. f4 {[%emt 0:00:05]} Be6 {[%emt 0:01:31]} 9. Na3 {[%emt 0:00:06]} Bxc4 {[%emt 0:01:49]} 10. Nxc4 {[%emt 0:00:02]} Ne6 {[%emt 0:00:13]} 11. fxe5 {[%emt 0:03:23]} Nxg5 {[%emt 0:12:34]} 12. exf6 {[%emt 0:00:48]} gxf6 {[%emt 0:02:00]} 13. Qd4 {[%emt 0:07:15]} Qe7 {[%emt 0:03:52]} 14. Rae1 {[%emt 0:04:14]} Ne6 {[%emt 0:07:59]} 15. Qf2 {[%emt 0:21:49]} Rg8 {[%emt 0:02:58]} 16. Ne3 {[%emt 0:00:16]} Ng5 {[%emt 0:01:52]} 17. Qf5 {[%emt 0:05:05]} c6 {[%emt 0:06:49]} 18. Ng4 {[%emt 0:01:45]} Rg6 {[%emt 0:03:56]} 19. Nxf6+ {[%emt 0:00:38]} Kf8 {[%emt 0:01:42]} 20. h4 {[%emt 0:11:40]} Ne6 {[%emt 0:00:35]} 21. h5 {[%emt 0:03:20]} Rg7 {[%emt 0:00:08]} 22. Nxh7+ {[%emt 0:01:54]} Kg8 {[%emt 0:00:06]} 23. Nf6+ {[%emt 0:00:12]} Kh8 {[%emt 0:00:05]} 24. c3 {[%emt 0:03:22]} Ng5 {[%emt 0:00:12]} 25. e5 {[%emt 0:05:55]} d5 {[%emt 0:00:06]} 26. Kh1 {[%emt 0:07:33]} Ne4 {[%emt 0:00:10]} 27. Rxe4 {[%emt 0:02:02]} dxe4 {[%emt 0:00:12]} 28. Qf4 {[%emt 0:00:13]} Rh7 {[%emt 0:01:24]} 29. Nxh7 {[%emt 0:01:20]} Kxh7 {[%emt 0:00:07]} 30. Qxe4+ {[%emt 0:00:29]} Kh8 {[%emt 0:00:09]} 31. Rf6 {[%emt 0:00:19]} Qf8 {[%emt 0:00:10]} 32. Qf4 {[%emt 0:00:25]} Qg7 {[%emt 0:00:13]} 33. Rxf7 {[%emt 0:00:15]} Qxf7 {[%emt 0:00:11]} 34. Qxf7 {[%emt 0:00:07]} Rg8 {[%emt 0:00:04]} 35. e6 {[%emt 0:00:13]} c5 {[%emt 0:00:04]} 36. e7 {[%emt 0:00:06]} c4 {[%emt 0:00:02]} 37. Qxg8+ {[%emt 0:00:09]} Kxg8 {[%emt 0:00:05]} 38. e8=Q+ {[%emt 0:00:06]} Kh7 {[%emt 0:00:19]} 39. Qg6+ {[%emt 0:00:07]} Kh8 {[%emt 0:00:04]} 40. h6 {[%emt 0:00:00]} b5 {[%emt 0:00:00]} 41. Qg7# {[%emt 0:00:07]} 1-0

[Event "IIFL Wealth 4th Mumbai Open"]
[Site "Mumbai"]
[Date "2019.01.06"]
[Round "8"]
[White "Mokashi Rohit"]
[Black "Awade Pradeep"]
[Result "0-1"]
[ECO "A48"]
[WhiteElo "1641"]
[BlackElo "1538"]
[Annotator "NA"]
[PlyCount "82"]
[EventDate "2018.12.30"]
[EventType "swiss"]
[EventCountry "IND"]
[SourceTitle "playchess.com"]
[Source "ChessBase"]
[SourceQuality "1"]
[TimeControl "40/5400+30:1800+30"]

1. d4 Nf6 2. Nf3 g6 3. c4 Bg7 4. Nc3 O-O 5. e4 d6 6. h3 e5 7. d5 Nbd7 8. Be3 Nc5 9. Nd2 a5 10. g4 c6 11. Be2 Bd7 12. g5 Ne8 13. h4 Nc7 14. h5 Rb8 15. hxg6 fxg6 16. Nb3 N7a6 17. Nxc5 Nxc5 18. Qc2 Na6 19. Qd2 Rf7 20. O-O-O Bf8 21. Rdg1 Qe8 22. Rh4 b5 23. dxc6 Bxc6 24. Nd5 Bxd5 25. exd5 bxc4 26. Rxc4 Nc7 27. Qxa5 Ra8 28. Qd2 Rxa2 29. Rgg4 Bg7 30. Rge4 Qa8 31. Bg4 Ra1+ 32. Kc2 Qa2 33. Kc3 Rb1 34. Ra4 Nb5+ 35. Kd3 Qb3+ 36. Ke2 Rxb2 37. Be6 Rxd2+ 38. Kxd2 Qb2+ 39. Ke1 Nc3 40. Bg4 Nxe4 41. Ra8+ Rf8 0-1

[Event "IIFL Wealth 4th Mumbai Open"]
[Site "Mumbai"]
[Date "2019.01.06"]
[Round "8"]
[White "Deshpande Jatin N"]
[Black "Thatte Ashish P"]
[Result "1/2-1/2"]
[ECO "A56"]
[WhiteElo "1564"]
[BlackElo "1957"]
[Annotator "NA"]
[PlyCount "108"]
[EventDate "2018.12.30"]
[EventType "swiss"]
[EventCountry "IND"]
[SourceTitle "playchess.com"]
[Source "ChessBase"]
[SourceQuality "1"]
[TimeControl "40/5400+30:1800+30"]

1. d4 Nf6 2. c4 c5 3. Nf3 g6 4. Nc3 Bg7 5. g3 O-O 6. Bg2 cxd4 7. Nxd4 Nc6 8. O-O d6 9. Nxc6 bxc6 10. Bxc6 Rb8 11. Qa4 Bh3 12. Bg2 Bxg2 13. Kxg2 Qd7 14. Rb1 Qb7+ 15. Kg1 Ne4 16. Nxe4 Qxe4 17. Be3 Rxb2 18. Rxb2 Bxb2 19. Qb3 Bf6 20. Rc1 h5 21. Qc2 Qg4 22. Bxa7 h4 23. Rb1 hxg3 24. hxg3 Qd7 25. Be3 Kg7 26. Kg2 Rc8 27. Rc1 Be5 28. Qe4 f5 29. Qd3 Ra8 30. a3 Qb7+ 31. f3 Qb2 32. Rb1 Qxa3 33. f4 Bf6 34. Qxa3 Rxa3 35. Kf2 Rc3 36. Rc1 Kf7 37. Rxc3 Bxc3 38. Kf3 e5 39. fxe5 dxe5 40. g4 Ke6 41. gxf5+ gxf5 42. Bc5 Bd2 43. e3 e4+ 44. Kf4 Ba5 45. Bd4 Bc7+ 46. Kg5 Bd8+ 47. Kg6 Bh4 48. Bc5 Bf2 49. Kg5 Be1 50. Bd4 Ba5 51. Bc5 Bd8+ 52. Kf4 Bf6 53. Bb6 Bg7 54. Kg5 Bf6+ 1/2-1/2

[Event "IIFL Wealth 4th Mumbai Open"]
[Site "Mumbai"]
[Date "2019.01.06"]
[Round "8"]
[White "Bheri Yaswanth"]
[Black "Barde Om"]
[Result "1/2-1/2"]
[ECO "D38"]
[WhiteElo "1550"]
[BlackElo "1801"]
[Annotator "NA"]
[PlyCount "206"]
[EventDate "2018.12.30"]
[EventType "swiss"]
[EventCountry "IND"]
[SourceTitle "playchess.com"]
[Source "ChessBase"]
[SourceQuality "1"]
[TimeControl "40/5400+30:1800+30"]

1. d4 Nf6 2. c4 e6 3. Nf3 d5 4. Nc3 Bb4 5. cxd5 exd5 6. Bg5 c6 7. Bxf6 Qxf6 8. e3 Bd6 9. h3 Bf5 10. Bd3 O-O 11. Qc2 Bxd3 12. Qxd3 Nd7 13. O-O Rae8 14. Rfe1 Qd8 15. e4 dxe4 16. Nxe4 Bb8 17. Rad1 Nb6 18. Neg5 g6 19. Ne4 Nd5 20. Qb3 Qb6 21. Nc5 Qxb3 22. Nxb3 Bd6 23. a3 Nf4 24. g3 Nd5 25. Na5 Rxe1+ 26. Rxe1 Bc7 27. Nc4 f6 28. Ne3 Ne7 29. Rd1 Rd8 30. Re1 Kf7 31. Rd1 Bb6 32. Nc4 Bc7 33. g4 Nd5 34. h4 Nf4 35. g5 Ne6 36. gxf6 Kxf6 37. Ne3 Bb6 38. Nc2 Bc7 39. Ne3 Bb6 40. Nc2 Rd7 41. Rd2 Rd6 42. Kg2 Ba5 43. b4 Bc7 44. Kf1 h6 45. Ne3 Nf4 46. Rc2 Rd7 47. Rd2 Bb6 48. Ke1 Ne6 49. Kd1 Rd8 50. Nc2 g5 51. hxg5+ hxg5 52. Rd3 Kf5 53. Nd2 Nxd4 54. Nxd4+ Rxd4 55. Rxd4 Bxd4 56. Ke2 Be5 57. Nc4 b6 58. Kf3 Bf4 59. a4 b5 60. axb5 cxb5 61. Na3 a6 62. Nc2 Ke5 63. Ke2 Kd5 64. Kd3 Bd6 65. f3 Bf8 66. Kc3 Ke5 67. Kd3 Kf4 68. Ke2 Be7 69. Kf2 Bd8 70. Ke2 Bb6 71. Na3 Bc7 72. Nc2 Bd6 73. Kf2 Ke5 74. Ke3 Kd5 75. Kd3 Bf8 76. Kc3 Be7 77. Kd3 Bd6 78. Kc3 Ke5 79. Kd3 Kf4 80. Ke2 Bf8 81. Kf2 Bd6 82. Ke2 Be7 83. Kf2 Bd8 84. Na3 Be7 85. Nc2 Bf6 86. Ke2 Be7 87. Kf2 Bd8 88. Na3 a5 89. bxa5 b4 90. Nc4 b3 91. a6 Bf6 92. Ke2 Bd4 93. Kd3 Bc5 94. Nd2 b2 95. Kc2 Bd4 96. Ne4 g4 97. fxg4 Kxe4 98. g5 Kd5 99. a7 b1=B+ 100. Kxb1 Bxa7 101. g6 Ke6 102. g7 Kf7 103. g8=Q+ Kxg8 1/2-1/2

[Event "IIFL Wealth 4th Mumbai Open"]
[Site "Mumbai"]
[Date "2019.01.06"]
[Round "8"]
[White "Dhanvij Ansh"]
[Black "Mayank Chakraborty"]
[Result "0-1"]
[ECO "D43"]
[WhiteElo "1523"]
[BlackElo "1677"]
[Annotator "NA"]
[PlyCount "98"]
[EventDate "2018.12.30"]
[EventType "swiss"]
[EventCountry "IND"]
[SourceTitle "playchess.com"]
[Source "ChessBase"]
[SourceQuality "1"]
[TimeControl "40/5400+30:1800+30"]

1. d4 {[%emt 0:00:00]} d5 {[%emt 0:00:00]} 2. c4 {[%emt 0:00:11]} c6 {[%emt 0:00:00]} 3. Nc3 {[%emt 0:00:12]} Nf6 {[%emt 0:00:00]} 4. Nf3 {[%emt 0:00:09]} e6 {[%emt 0:00:05]} 5. g3 {[%emt 0:00:12]} dxc4 {[%emt 0:03:29]} 6. Bg2 {[%emt 0:01:06]} b5 {[%emt 0:00:11]} 7. Ne5 {[%emt 0:00:36]} Qb6 {[%emt 0:00:21]} 8. Bg5 {[%emt 0:08:29]} Nd5 {[%emt 0:02:51]} 9. e4 {[%emt 0:04:12]} Nxc3 {[%emt 0:01:09]} 10. bxc3 {[%emt 0:00:11]} Nd7 {[%emt 0:07:42]} 11. Nf3 {[%emt 0:03:36]} Bb7 {[%emt 0:02:16]} 12. O-O {[%emt 0:02:19]} h6 {[%emt 0:02:32]} 13. Be3 {[%emt 0:00:15]} Qa5 {[%emt 0:00:27]} 14. Qc2 {[%emt 0:01:10]} Bd6 {[%emt 0:00:55]} 15. Nd2 {[%emt 0:05:50]} Qc7 {[%emt 0:03:17]} 16. e5 {[%emt 0:01:37]} Be7 {[%emt 0:02:49]} 17. f4 {[%emt 0:01:59]} g6 {[%emt 0:01:41]} 18. Be4 {[%emt 0:14:06]} Rg8 {[%emt 0:02:24]} 19. a4 {[%emt 0:03:13]} Nb6 {[%emt 0:02:57]} 20. axb5 {[%emt 0:01:34]} cxb5 {[%emt 0:02:22]} 21. Rfb1 {[%emt 0:01:12]} a6 {[%emt 0:01:15]} 22. Bxb7 {[%emt 0:02:07]} Qxb7 {[%emt 0:00:15]} 23. Ra2 {[%emt 0:01:38]} Qc6 {[%emt 0:01:42]} 24. Ne4 {[%emt 0:08:33]} Nd5 {[%emt 0:02:00]} 25. Bc1 {[%emt 0:00:20]} Kd7 {[%emt 0:01:59]} 26. Qe2 {[%emt 0:03:36]} a5 {[%emt 0:03:37]} 27. Rba1 {[%emt 0:02:10]} Qb6 {[%emt 0:01:45]} 28. Rb1 {[%emt 0:05:45]} Rgb8 {[%emt 0:06:33]} 29. Ba3 {[%emt 0:02:37]} Nxc3 {[%emt 0:03:13]} 30. Nxc3 {[%emt 0:00:08]} Qxd4+ {[%emt 0:00:10]} 31. Qf2 {[%emt 0:00:54]} Qxf2+ {[%emt 0:01:13]} 32. Kxf2 {[%emt 0:00:09]} b4 {[%emt 0:00:05]} 33. Bxb4 {[%emt 0:01:35]} axb4 {[%emt 0:00:10]} 34. Rxa8 {[%emt 0:00:07]} Rxa8 {[%emt 0:00:05]} 35. Ne4 {[%emt 0:00:28]} Ra2+ {[%emt 0:00:14]} 36. Ke3 {[%emt 0:00:08]} Rxh2 {[%emt 0:00:29]} 37. Rc1 {[%emt 0:00:59]} c3 {[%emt 0:00:24]} 38. Nxc3 {[%emt 0:00:10]} bxc3 {[%emt 0:00:05]} 39. Rxc3 {[%emt 0:00:18]} h5 {[%emt 0:00:09]} 40. Rd3+ {[%emt 0:00:00]} Ke8 {[%emt 0:00:00]} 41. Ke4 {[%emt 0:00:15]} Bc5 {[%emt 0:00:39]} 42. Rc3 {[%emt 0:00:10]} Bb6 {[%emt 0:00:29]} 43. Rb3 {[%emt 0:00:07]} Bd8 {[%emt 0:00:15]} 44. Rb7 {[%emt 0:00:10]} Rh3 {[%emt 0:00:09]} 45. Rb3 {[%emt 0:00:12]} h4 {[%emt 0:00:08]} 46. Rf3 {[%emt 0:00:07]} Rxg3 {[%emt 0:00:08]} 47. Rf1 {[%emt 0:00:51]} h3 {[%emt 0:00:10]} 48. Rh1 {[%emt 0:01:19]} f5+ {[%emt 0:00:33]} 49. exf6 {[%emt 0:00:09]} Bxf6 {[%emt 0:00:07]} 0-1